[Event "Titled Tuesday Blitz October 31 Late 2023"]
[White "Koc, Przemyslaw"]
[Black "Lock, Gavin R"]
[WhiteFideId "1109081"]
[BlackFideId "408646"]
[WhiteElo "2445"]
[BlackElo "2243"]
[Result "1-0"]
[Round "6"]
[TimeControl "180+1"]
[Date "2023.10.31"]
[WhiteClock "0:00:51"]
[BlackClock "0:00:00"]
[Board "123"]

1. e4 {[%clk 0:02:56]}  c6 {[%clk 0:03:00]} 2. Nf3 {[%clk 0:02:55]}  d5 {[%clk 0:03:00]} 3. d3 {[%clk 0:02:56]}  dxe4 {[%clk 0:03:00]} 4. Ng5 {[%clk 0:02:57]}  exd3 {[%clk 0:02:57]} 5. Bxd3 {[%clk 0:02:56]}  Nd7 {[%clk 0:02:57]} 6. Nxh7 {[%clk 0:02:45]}  Ne5 {[%clk 0:02:55]} 7. Nxf8 {[%clk 0:02:44]}  Nxd3+ {[%clk 0:02:55]} 8. cxd3 {[%clk 0:02:43]}  Kxf8 {[%clk 0:02:47]} 9. Nc3 {[%clk 0:02:41]}  Nf6 {[%clk 0:02:34]} 10. Bf4 {[%clk 0:02:40]}  Bf5 {[%clk 0:02:33]} 11. d4 {[%clk 0:02:40]}  Nd5 {[%clk 0:02:25]} 12. Bg3 {[%clk 0:02:37]}  g6 {[%clk 0:02:03]} 13. O-O {[%clk 0:02:36]}  Kg7 {[%clk 0:02:03]} 14. Re1 {[%clk 0:02:35]}  Re8 {[%clk 0:01:47]} 15. Qe2 {[%clk 0:02:22]}  Nxc3 {[%clk 0:01:33]} 16. bxc3 {[%clk 0:02:22]}  Qd5 {[%clk 0:01:30]} 17. c4 {[%clk 0:02:20]}  Qd7 {[%clk 0:01:27]} 18. Rad1 {[%clk 0:02:16]}  Rad8 {[%clk 0:01:26]} 19. h3 {[%clk 0:02:07]}  b5 {[%clk 0:01:19]} 20. cxb5 {[%clk 0:02:06]}  cxb5 {[%clk 0:01:18]} 21. d5 {[%clk 0:02:07]}  a5 {[%clk 0:01:08]} 22. Bf4 {[%clk 0:02:07]}  Rc8 {[%clk 0:01:06]} 23. g4 {[%clk 0:02:06]}  Rc2 {[%clk 0:01:04]} 24. Rd2 {[%clk 0:02:06]}  Rxd2 {[%clk 0:01:00]} 25. Qxd2 {[%clk 0:01:58]}  Bxg4 {[%clk 0:00:55]} 26. hxg4 {[%clk 0:01:58]}  Qxg4+ {[%clk 0:00:56]} 27. Bg3 {[%clk 0:01:59]}  Rh8 {[%clk 0:00:54]} 28. Qe2 {[%clk 0:01:50]}  Qh3 {[%clk 0:00:47]} 29. Qf1 {[%clk 0:01:50]}  Qf5 {[%clk 0:00:45]} 30. Qg2 {[%clk 0:01:48]}  Rd8 {[%clk 0:00:18]} 31. Rd1 {[%clk 0:01:29]}  b4 {[%clk 0:00:17]} 32. Qf1 {[%clk 0:01:13]}  a4 {[%clk 0:00:13]} 33. Qc4 {[%clk 0:01:13]}  Rh8 {[%clk 0:00:08]} 34. Qd4+ {[%clk 0:01:08]}  Kg8 {[%clk 0:00:08]} 35. d6 {[%clk 0:01:04]}  Qf3 {[%clk 0:00:05]} 36. Bh2 {[%clk 0:00:57]}  Qh3 {[%clk 0:00:02]} 37. Qf4 {[%clk 0:00:54]}  Rh5 {[%clk 0:00:00]} 38. dxe7 {[%clk 0:00:51]} 1-0


[Site "https://www.chess.com"]

[Event "Titled Tuesday Blitz October 31 Late 2023"]
[White "pinguino120"]
[Black "Arutla, Aditya"]
[BlackFideId "30961998"]
[WhiteElo "2236"]
[BlackElo "2438"]
[Result "1/2-1/2"]
[Round "6"]
[TimeControl "180+1"]
[Date "2023.10.31"]
[WhiteClock "0:01:22"]
[BlackClock "0:01:18"]
[Board "124"]

1. e4 {[%clk 0:03:00]}  e5 {[%clk 0:02:52]} 2. Nf3 {[%clk 0:02:58]}  Nc6 {[%clk 0:02:52]} 3. Bc4 {[%clk 0:02:59]}  Nf6 {[%clk 0:02:51]} 4. d3 {[%clk 0:02:53]}  h6 {[%clk 0:02:49]} 5. c3 {[%clk 0:02:51]}  d6 {[%clk 0:02:47]} 6. O-O {[%clk 0:02:50]}  g5 {[%clk 0:02:45]} 7. Be3 {[%clk 0:02:29]}  Bg7 {[%clk 0:02:43]} 8. Nbd2 {[%clk 0:02:27]}  O-O {[%clk 0:02:43]} 9. b4 {[%clk 0:02:26]}  Ng4 {[%clk 0:02:39]} 10. a4 {[%clk 0:02:23]}  Nxe3 {[%clk 0:02:39]} 11. fxe3 {[%clk 0:02:24]}  Kh8 {[%clk 0:02:38]} 12. Qb3 {[%clk 0:02:24]}  f5 {[%clk 0:02:38]} 13. b5 {[%clk 0:02:12]}  Na5 {[%clk 0:02:36]} 14. Qb4 {[%clk 0:02:10]}  Nxc4 {[%clk 0:02:34]} 15. Qxc4 {[%clk 0:02:10]}  fxe4 {[%clk 0:02:29]} 16. Nxe4 {[%clk 0:02:10]}  Qe7 {[%clk 0:02:29]} 17. Qb4 {[%clk 0:02:05]}  Bg4 {[%clk 0:02:19]} 18. c4 {[%clk 0:01:59]}  Qe6 {[%clk 0:02:17]} 19. Rf2 {[%clk 0:01:52]}  Bf5 {[%clk 0:02:14]} 20. Raf1 {[%clk 0:01:51]}  b6 {[%clk 0:02:10]} 21. Nfd2 {[%clk 0:01:48]}  Bg6 {[%clk 0:02:07]} 22. a5 {[%clk 0:01:47]}  Rxf2 {[%clk 0:02:04]} 23. Rxf2 {[%clk 0:01:47]}  Rf8 {[%clk 0:02:03]} 24. Rxf8+ {[%clk 0:01:44]}  Bxf8 {[%clk 0:02:04]} 25. axb6 {[%clk 0:01:44]}  axb6 {[%clk 0:01:59]} 26. Qa4 {[%clk 0:01:42]}  d5 {[%clk 0:01:43]} 27. Qa8 {[%clk 0:01:38]}  dxe4 {[%clk 0:01:39]} 28. Qxf8+ {[%clk 0:01:37]}  Kh7 {[%clk 0:01:39]} 29. Nxe4 {[%clk 0:01:31]}  Bxe4 {[%clk 0:01:38]} 30. dxe4 {[%clk 0:01:32]}  Qxc4 {[%clk 0:01:38]} 31. Qe7+ {[%clk 0:01:32]}  Kg6 {[%clk 0:01:38]} 32. Qxe5 {[%clk 0:01:26]}  Qc1+ {[%clk 0:01:36]} 33. Kf2 {[%clk 0:01:26]}  Qd2+ {[%clk 0:01:36]} 34. Kf3 {[%clk 0:01:23]}  Qd1+ {[%clk 0:01:34]} 35. Kf2 {[%clk 0:01:23]}  Qd2+ {[%clk 0:01:27]} 36. Kf3 {[%clk 0:01:22]}  Qd1+ {[%clk 0:01:17]} 37. Kf2 {[%clk 0:01:22]}  Qd2+ {[%clk 0:01:18]} 1/2-1/2


[Site "https://www.chess.com"]

[Event "Titled Tuesday Blitz October 31 Late 2023"]
[White "ChessLebaneseSalah"]
[Black "Clawitter, Craig"]
[BlackFideId "2023105"]
[WhiteElo "2399"]
[BlackElo "2228"]
[Result "1-0"]
[Round "6"]
[TimeControl "180+1"]
[Date "2023.10.31"]
[WhiteClock "0:00:10"]
[BlackClock "0:00:00"]
[Board "126"]

1. e4 {[%clk 0:03:00]}  e6 {[%clk 0:02:55]} 2. d4 {[%clk 0:03:00]}  d5 {[%clk 0:02:55]} 3. e5 {[%clk 0:03:00]}  c5 {[%clk 0:02:54]} 4. c3 {[%clk 0:03:00]}  Qb6 {[%clk 0:02:54]} 5. Nf3 {[%clk 0:03:01]}  Nc6 {[%clk 0:02:55]} 6. Bd3 {[%clk 0:03:01]}  cxd4 {[%clk 0:02:53]} 7. O-O {[%clk 0:03:00]}  Bd7 {[%clk 0:02:53]} 8. Re1 {[%clk 0:02:56]}  Nge7 {[%clk 0:02:49]} 9. h4 {[%clk 0:02:49]}  dxc3 {[%clk 0:02:43]} 10. Nxc3 {[%clk 0:02:47]}  a6 {[%clk 0:02:39]} 11. Be3 {[%clk 0:02:43]}  Qd8 {[%clk 0:02:33]} 12. Na4 {[%clk 0:02:29]}  Ng6 {[%clk 0:02:23]} 13. h5 {[%clk 0:02:22]}  Ngxe5 {[%clk 0:02:23]} 14. Nxe5 {[%clk 0:02:17]}  Nxe5 {[%clk 0:02:23]} 15. Bb6 {[%clk 0:02:17]}  Qf6 {[%clk 0:02:18]} 16. Bd4 {[%clk 0:01:55]}  Nf3+ {[%clk 0:01:54]} 17. gxf3 {[%clk 0:01:48]}  Qxd4 {[%clk 0:01:51]} 18. Nc3 {[%clk 0:01:30]}  Bb4 {[%clk 0:01:40]} 19. Qe2 {[%clk 0:01:18]}  Bxc3 {[%clk 0:01:06]} 20. bxc3 {[%clk 0:01:12]}  Qf6 {[%clk 0:00:59]} 21. Rab1 {[%clk 0:01:05]}  Bc6 {[%clk 0:00:49]} 22. Rb4 {[%clk 0:00:37]}  h6 {[%clk 0:00:37]} 23. Rg4 {[%clk 0:00:27]}  O-O {[%clk 0:00:23]} 24. Bb1 {[%clk 0:00:26]}  Qxc3 {[%clk 0:00:14]} 25. Kh2 {[%clk 0:00:21]}  Rac8 {[%clk 0:00:12]} 26. Reg1 {[%clk 0:00:20]}  Bb5 {[%clk 0:00:08]} 27. Qe3 {[%clk 0:00:17]}  Qf6 {[%clk 0:00:03]} 28. Rxg7+ {[%clk 0:00:12]}  Qxg7 {[%clk 0:00:00]} 29. Qxh6 {[%clk 0:00:10]} 1-0


[Site "https://www.chess.com"]

[Event "Titled Tuesday Blitz October 31 Late 2023"]
[White "KorolDimitriy75"]
[Black "Lukey, Stephen G"]
[BlackFideId "4300386"]
[WhiteElo "2339"]
[BlackElo "2224"]
[Result "1-0"]
[Round "6"]
[TimeControl "180+1"]
[Date "2023.10.31"]
[WhiteClock "0:00:19"]
[BlackClock "0:00:02"]
[Board "134"]

1. d4 {[%clk 0:03:00]}  Nf6 {[%clk 0:02:59]} 2. c4 {[%clk 0:03:01]}  g6 {[%clk 0:03:00]} 3. Nc3 {[%clk 0:03:01]}  Bg7 {[%clk 0:03:00]} 4. e4 {[%clk 0:03:01]}  O-O {[%clk 0:03:01]} 5. Nf3 {[%clk 0:03:02]}  d6 {[%clk 0:03:00]} 6. Be2 {[%clk 0:03:03]}  e5 {[%clk 0:03:01]} 7. dxe5 {[%clk 0:03:04]}  dxe5 {[%clk 0:02:59]} 8. Qxd8 {[%clk 0:03:05]}  Rxd8 {[%clk 0:02:59]} 9. Bg5 {[%clk 0:03:06]}  c6 {[%clk 0:02:56]} 10. Nxe5 {[%clk 0:03:06]}  Re8 {[%clk 0:02:55]} 11. O-O-O {[%clk 0:03:06]}  Na6 {[%clk 0:02:45]} 12. Rd6 {[%clk 0:03:05]}  Be6 {[%clk 0:02:41]} 13. f4 {[%clk 0:03:04]}  h6 {[%clk 0:02:37]} 14. Bh4 {[%clk 0:03:03]}  Nc5 {[%clk 0:02:30]} 15. Bf3 {[%clk 0:03:02]}  Nfd7 {[%clk 0:02:09]} 16. Nxd7 {[%clk 0:02:51]}  Nxd7 {[%clk 0:02:03]} 17. Kc2 {[%clk 0:02:17]}  a5 {[%clk 0:00:51]} 18. Rhd1 {[%clk 0:01:54]}  Nc5 {[%clk 0:00:50]} 19. Bf2 {[%clk 0:01:39]}  Na6 {[%clk 0:00:35]} 20. b3 {[%clk 0:01:35]}  g5 {[%clk 0:00:27]} 21. g3 {[%clk 0:01:35]}  gxf4 {[%clk 0:00:25]} 22. gxf4 {[%clk 0:01:36]}  Nb4+ {[%clk 0:00:21]} 23. Kb2 {[%clk 0:01:35]}  a4 {[%clk 0:00:20]} 24. e5 {[%clk 0:01:22]}  a3+ {[%clk 0:00:12]} 25. Kb1 {[%clk 0:01:19]}  f6 {[%clk 0:00:12]} 26. Bg3 {[%clk 0:00:52]}  fxe5 {[%clk 0:00:10]} 27. fxe5 {[%clk 0:00:51]}  Bf5+ {[%clk 0:00:09]} 28. Be4 {[%clk 0:00:48]}  Bxe4+ {[%clk 0:00:08]} 29. Nxe4 {[%clk 0:00:47]}  Bxe5 {[%clk 0:00:08]} 30. Nf6+ {[%clk 0:00:46]}  Bxf6 {[%clk 0:00:07]} 31. Rxf6 {[%clk 0:00:47]}  Re2 {[%clk 0:00:06]} 32. Rd7 {[%clk 0:00:35]}  Rb2+ {[%clk 0:00:05]} 33. Kc1 {[%clk 0:00:34]}  Rxa2 {[%clk 0:00:05]} 34. Rg6+ {[%clk 0:00:20]}  Kh8 {[%clk 0:00:02]} 35. Be5# {[%clk 0:00:19]} 1-0


[Site "https://www.chess.com"]

[Event "Titled Tuesday Blitz October 31 Late 2023"]
[White "Bokros, Albert"]
[Black "Krasik, Ilya"]
[WhiteFideId "710458"]
[BlackFideId "2024527"]
[WhiteElo "2325"]
[BlackElo "2023"]
[Result "1-0"]
[Round "6"]
[TimeControl "180+1"]
[Date "2023.10.31"]
[WhiteClock "0:00:14"]
[BlackClock "0:00:09"]
[Board "135"]

1. e4 {[%clk 0:03:00]}  d5 {[%clk 0:02:57]} 2. exd5 {[%clk 0:02:59]}  Nf6 {[%clk 0:02:56]} 3. d4 {[%clk 0:02:58]}  Nxd5 {[%clk 0:02:55]} 4. c4 {[%clk 0:02:59]}  Nb6 {[%clk 0:02:54]} 5. c5 {[%clk 0:02:59]}  Nd5 {[%clk 0:02:54]} 6. Nc3 {[%clk 0:03:00]}  g6 {[%clk 0:02:45]} 7. Bc4 {[%clk 0:02:58]}  c6 {[%clk 0:02:45]} 8. Nf3 {[%clk 0:02:57]}  Bg7 {[%clk 0:02:45]} 9. O-O {[%clk 0:02:56]}  O-O {[%clk 0:02:45]} 10. Re1 {[%clk 0:02:55]}  Bg4 {[%clk 0:02:41]} 11. Bg5 {[%clk 0:02:49]}  Bf6 {[%clk 0:02:34]} 12. Bxf6 {[%clk 0:02:20]}  exf6 {[%clk 0:02:35]} 13. Bxd5 {[%clk 0:02:17]}  cxd5 {[%clk 0:02:34]} 14. h3 {[%clk 0:02:17]}  Be6 {[%clk 0:02:19]} 15. Qd2 {[%clk 0:02:13]}  Kg7 {[%clk 0:02:11]} 16. Ne2 {[%clk 0:02:08]}  Nc6 {[%clk 0:02:03]} 17. Nf4 {[%clk 0:02:07]}  Qd7 {[%clk 0:02:02]} 18. b4 {[%clk 0:02:01]}  a6 {[%clk 0:01:58]} 19. a4 {[%clk 0:02:00]}  a5 {[%clk 0:01:54]} 20. b5 {[%clk 0:02:00]}  Nb4 {[%clk 0:01:55]} 21. Rac1 {[%clk 0:01:45]}  Rac8 {[%clk 0:01:50]} 22. Nd3 {[%clk 0:01:41]}  Nxd3 {[%clk 0:01:42]} 23. Qxd3 {[%clk 0:01:42]}  Bf5 {[%clk 0:01:42]} 24. Qc3 {[%clk 0:01:41]}  Be4 {[%clk 0:01:41]} 25. Nd2 {[%clk 0:01:37]}  Rfd8 {[%clk 0:01:29]} 26. Nxe4 {[%clk 0:01:36]}  dxe4 {[%clk 0:01:29]} 27. Rxe4 {[%clk 0:01:36]}  Qd5 {[%clk 0:01:28]} 28. Rce1 {[%clk 0:01:35]}  f5 {[%clk 0:01:24]} 29. Re7 {[%clk 0:01:31]}  Qxd4 {[%clk 0:01:21]} 30. Qxd4+ {[%clk 0:00:58]}  Rxd4 {[%clk 0:01:22]} 31. Rxb7 {[%clk 0:00:59]}  Rxc5 {[%clk 0:01:18]} 32. Ree7 {[%clk 0:00:58]}  Rxa4 {[%clk 0:01:16]} 33. Rxf7+ {[%clk 0:00:59]}  Kh6 {[%clk 0:01:17]} 34. Rxh7+ {[%clk 0:00:59]}  Kg5 {[%clk 0:01:17]} 35. g3 {[%clk 0:00:56]}  f4 {[%clk 0:01:11]} 36. h4+ {[%clk 0:00:43]}  Kg4 {[%clk 0:01:10]} 37. Rbg7 {[%clk 0:00:40]}  Kf3 {[%clk 0:01:05]} 38. Rf7 {[%clk 0:00:33]}  Rxb5 {[%clk 0:00:53]} 39. Rxf4+ {[%clk 0:00:22]}  Rxf4 {[%clk 0:00:54]} 40. gxf4 {[%clk 0:00:23]}  Kxf4 {[%clk 0:00:54]} 41. Kg2 {[%clk 0:00:23]}  a4 {[%clk 0:00:48]} 42. Ra7 {[%clk 0:00:23]}  Rb4 {[%clk 0:00:48]} 43. Ra6 {[%clk 0:00:23]}  Kg4 {[%clk 0:00:44]} 44. Rxg6+ {[%clk 0:00:22]}  Kxh4 {[%clk 0:00:45]} 45. Ra6 {[%clk 0:00:22]}  Kg4 {[%clk 0:00:37]} 46. Ra5 {[%clk 0:00:21]}  Kf4 {[%clk 0:00:37]} 47. Ra8 {[%clk 0:00:20]}  Ke4 {[%clk 0:00:35]} 48. f3+ {[%clk 0:00:19]}  Kf4 {[%clk 0:00:35]} 49. Rf8+ {[%clk 0:00:20]}  Ke5 {[%clk 0:00:34]} 50. Re8+ {[%clk 0:00:19]}  Kf5 {[%clk 0:00:34]} 51. Rf8+ {[%clk 0:00:19]}  Ke5 {[%clk 0:00:34]} 52. Kg3 {[%clk 0:00:19]}  a3 {[%clk 0:00:34]} 53. f4+ {[%clk 0:00:18]}  Ke4 {[%clk 0:00:34]} 54. Re8+ {[%clk 0:00:18]}  Kf5 {[%clk 0:00:33]} 55. Re5+ {[%clk 0:00:19]}  Kf6 {[%clk 0:00:33]} 56. Ra5 {[%clk 0:00:19]}  Rb3+ {[%clk 0:00:34]} 57. Kg4 {[%clk 0:00:20]}  Rc3 {[%clk 0:00:33]} 58. Ra6+ {[%clk 0:00:21]}  Ke7 {[%clk 0:00:33]} 59. f5 {[%clk 0:00:20]}  Rc4+ {[%clk 0:00:33]} 60. Kg5 {[%clk 0:00:20]}  Rc3 {[%clk 0:00:33]} 61. f6+ {[%clk 0:00:20]}  Kf7 {[%clk 0:00:33]} 62. Ra7+ {[%clk 0:00:20]}  Ke6 {[%clk 0:00:34]} 63. Re7+ {[%clk 0:00:20]}  Kd6 {[%clk 0:00:32]} 64. Re2 {[%clk 0:00:19]}  Rg3+ {[%clk 0:00:32]} 65. Kh6 {[%clk 0:00:18]}  Rf3 {[%clk 0:00:32]} 66. Kg7 {[%clk 0:00:18]}  Rg3+ {[%clk 0:00:32]} 67. Kf8 {[%clk 0:00:18]}  Kd7 {[%clk 0:00:29]} 68. f7 {[%clk 0:00:18]}  Rg5 {[%clk 0:00:26]} 69. Ra2 {[%clk 0:00:16]}  Rg3 {[%clk 0:00:26]} 70. Rd2+ {[%clk 0:00:17]}  Ke6 {[%clk 0:00:25]} 71. Ke8 {[%clk 0:00:15]}  Rb3 {[%clk 0:00:22]} 72. f8=Q {[%clk 0:00:13]}  Rb8+ {[%clk 0:00:09]} 73. Rd8 {[%clk 0:00:14]} 1-0


[Site "https://www.chess.com"]

[Event "Titled Tuesday Blitz October 31 Late 2023"]
[White "Smirnov, Timofey"]
[Black "Flameboard08"]
[WhiteFideId "24176427"]
[WhiteElo "2197"]
[BlackElo "2579"]
[Result "0-1"]
[Round "6"]
[TimeControl "180+1"]
[Date "2023.10.31"]
[WhiteClock "0:00:08"]
[BlackClock "0:00:02"]
[Board "137"]

1. d4 {[%clk 0:02:57]}  b6 {[%clk 0:02:58]} 2. Bf4 {[%clk 0:02:55]}  Bb7 {[%clk 0:02:58]} 3. e3 {[%clk 0:02:56]}  d6 {[%clk 0:02:58]} 4. Nf3 {[%clk 0:02:54]}  g6 {[%clk 0:02:58]} 5. h3 {[%clk 0:02:54]}  Bg7 {[%clk 0:02:59]} 6. Be2 {[%clk 0:02:55]}  Nd7 {[%clk 0:02:59]} 7. O-O {[%clk 0:02:55]}  e5 {[%clk 0:02:59]} 8. dxe5 {[%clk 0:02:55]}  dxe5 {[%clk 0:03:00]} 9. Bh2 {[%clk 0:02:50]}  Ne7 {[%clk 0:02:59]} 10. c3 {[%clk 0:02:50]}  O-O {[%clk 0:02:57]} 11. Nbd2 {[%clk 0:02:47]}  Nc6 {[%clk 0:02:54]} 12. a4 {[%clk 0:02:33]}  Qe7 {[%clk 0:02:52]} 13. Qc2 {[%clk 0:02:11]}  a5 {[%clk 0:02:50]} 14. Rad1 {[%clk 0:02:07]}  f5 {[%clk 0:02:45]} 15. Bb5 {[%clk 0:01:48]}  Nc5 {[%clk 0:02:27]} 16. Nb3 {[%clk 0:01:42]}  Na6 {[%clk 0:02:03]} 17. Rd2 {[%clk 0:01:32]}  Na7 {[%clk 0:01:47]} 18. Rd7 {[%clk 0:01:29]}  Qe6 {[%clk 0:01:34]} 19. Rxg7+ {[%clk 0:01:11]}  Kxg7 {[%clk 0:01:31]} 20. Bxe5+ {[%clk 0:01:11]}  Kg8 {[%clk 0:01:08]} 21. Nbd4 {[%clk 0:01:10]}  Qd5 {[%clk 0:00:57]} 22. Be2 {[%clk 0:00:37]}  Rae8 {[%clk 0:00:35]} 23. b3 {[%clk 0:00:36]}  Qd8 {[%clk 0:00:24]} 24. Bc4+ {[%clk 0:00:33]}  Rf7 {[%clk 0:00:17]} 25. Bxf7+ {[%clk 0:00:22]}  Kxf7 {[%clk 0:00:18]} 26. h4 {[%clk 0:00:17]}  Qd5 {[%clk 0:00:06]} 27. Ng5+ {[%clk 0:00:12]}  Kg8 {[%clk 0:00:03]} 28. Bf4 {[%clk 0:00:08]}  Qxg2# {[%clk 0:00:02]} 0-1


[Site "https://www.chess.com"]

[Event "Titled Tuesday Blitz October 31 Late 2023"]
[White "Do Nascimento,Christian Almeida"]
[Black "Perry, Patrick"]
[WhiteFideId "2143801"]
[BlackFideId "30917727"]
[WhiteElo "2560"]
[BlackElo "2194"]
[Result "1-0"]
[Round "6"]
[TimeControl "180+1"]
[Date "2023.10.31"]
[WhiteClock "0:01:33"]
[BlackClock "0:01:54"]
[Board "138"]

1. d4 {[%clk 0:02:56]}  Nf6 {[%clk 0:02:59]} 2. c4 {[%clk 0:02:55]}  c5 {[%clk 0:02:57]} 3. d5 {[%clk 0:02:55]}  e6 {[%clk 0:02:58]} 4. Nc3 {[%clk 0:02:54]}  exd5 {[%clk 0:02:59]} 5. cxd5 {[%clk 0:02:54]}  d6 {[%clk 0:03:00]} 6. e4 {[%clk 0:02:54]}  Nbd7 {[%clk 0:02:59]} 7. Nf3 {[%clk 0:02:54]}  Be7 {[%clk 0:02:58]} 8. a4 {[%clk 0:02:50]}  O-O {[%clk 0:02:58]} 9. Be2 {[%clk 0:02:50]}  Re8 {[%clk 0:02:58]} 10. O-O {[%clk 0:02:50]}  Bf8 {[%clk 0:02:58]} 11. Qc2 {[%clk 0:02:47]}  h6 {[%clk 0:02:51]} 12. h3 {[%clk 0:02:47]}  Ne5 {[%clk 0:02:49]} 13. Nxe5 {[%clk 0:02:46]}  Rxe5 {[%clk 0:02:48]} 14. Bf4 {[%clk 0:02:45]}  Re8 {[%clk 0:02:48]} 15. Bh2 {[%clk 0:02:45]}  g5 {[%clk 0:02:47]} 16. f4 {[%clk 0:02:45]}  gxf4 {[%clk 0:02:47]} 17. Rxf4 {[%clk 0:02:42]}  Bg7 {[%clk 0:02:48]} 18. Raf1 {[%clk 0:02:42]}  a6 {[%clk 0:02:43]} 19. Bg3 {[%clk 0:02:36]}  Qc7 {[%clk 0:02:32]} 20. Rxf6 {[%clk 0:02:35]}  Bxf6 {[%clk 0:02:32]} 21. Rxf6 {[%clk 0:02:35]}  Kg7 {[%clk 0:02:30]} 22. Rxd6 {[%clk 0:02:31]}  Qe7 {[%clk 0:02:29]} 23. Bf4 {[%clk 0:02:17]}  Rh8 {[%clk 0:02:25]} 24. e5 {[%clk 0:01:59]}  Qh4 {[%clk 0:02:24]} 25. Qe4 {[%clk 0:01:54]}  Qe1+ {[%clk 0:02:16]} 26. Kh2 {[%clk 0:01:53]}  Qf2 {[%clk 0:02:09]} 27. Bg3 {[%clk 0:01:46]}  Qd4 {[%clk 0:02:07]} 28. Qf3 {[%clk 0:01:46]}  Re8 {[%clk 0:01:55]} 29. Qf6+ {[%clk 0:01:33]}  Kh7 {[%clk 0:01:54]} 1-0


[Site "https://www.chess.com"]

[Event "Titled Tuesday Blitz October 31 Late 2023"]
[White "Martin Carmona, Gaston Manuel"]
[Black "Mariia89"]
[WhiteFideId "22284567"]
[WhiteElo "2528"]
[BlackElo "2178"]
[Result "1-0"]
[Round "6"]
[TimeControl "180+1"]
[Date "2023.10.31"]
[WhiteClock "0:02:57"]
[BlackClock "0:02:57"]
[Board "139"]

1. Nf3 {[%clk 0:03:00]}  c5 {[%clk 0:02:59]} 2. b3 {[%clk 0:02:59]}  Nc6 {[%clk 0:03:00]} 3. Bb2 {[%clk 0:02:59]}  Nf6 {[%clk 0:03:00]} 4. c4 {[%clk 0:02:57]}  g6 {[%clk 0:02:59]} 5. g3 {[%clk 0:02:57]}  Bg7 {[%clk 0:03:00]} 6. Bg2 {[%clk 0:02:58]}  O-O {[%clk 0:03:00]} 7. O-O {[%clk 0:02:58]}  d6 {[%clk 0:03:00]} 8. d4 {[%clk 0:02:57]}  cxd4 {[%clk 0:03:00]} 9. Nxd4 {[%clk 0:02:58]}  Bd7 {[%clk 0:02:59]} 10. Nc3 {[%clk 0:02:56]}  Nxd4 {[%clk 0:02:57]} 11. Qxd4 {[%clk 0:02:57]}  Bc6 {[%clk 0:02:58]} 12. Nd5 {[%clk 0:02:57]}  Nxd5 {[%clk 0:02:57]} 13. Qxg7# {[%clk 0:02:57]} 1-0


[Site "https://www.chess.com"]

[Event "Titled Tuesday Blitz October 31 Late 2023"]
[White "iJueles"]
[Black "Wisniowski, Natalie"]
[BlackFideId "30929261"]
[WhiteElo "2433"]
[BlackElo "2156"]
[Result "1-0"]
[Round "6"]
[TimeControl "180+1"]
[Date "2023.10.31"]
[WhiteClock "0:00:40"]
[BlackClock "0:00:00"]
[Board "141"]

1. d4 {[%clk 0:03:00]}  Nf6 {[%clk 0:02:56]} 2. Bg5 {[%clk 0:02:59]}  e6 {[%clk 0:02:55]} 3. Nf3 {[%clk 0:02:58]}  d5 {[%clk 0:02:55]} 4. e3 {[%clk 0:02:57]}  Be7 {[%clk 0:02:54]} 5. Nbd2 {[%clk 0:02:57]}  O-O {[%clk 0:02:54]} 6. Bd3 {[%clk 0:02:57]}  c5 {[%clk 0:02:47]} 7. c3 {[%clk 0:02:57]}  Nc6 {[%clk 0:02:47]} 8. O-O {[%clk 0:02:56]}  b6 {[%clk 0:02:45]} 9. Ne5 {[%clk 0:02:55]}  Bb7 {[%clk 0:02:44]} 10. f4 {[%clk 0:02:55]}  Rc8 {[%clk 0:02:41]} 11. Qf3 {[%clk 0:02:51]}  h6 {[%clk 0:02:30]} 12. Bxf6 {[%clk 0:02:50]}  Bxf6 {[%clk 0:02:30]} 13. Kh1 {[%clk 0:02:41]}  Qe7 {[%clk 0:01:58]} 14. Qh3 {[%clk 0:02:39]}  a6 {[%clk 0:01:27]} 15. Nxc6 {[%clk 0:02:23]}  Rxc6 {[%clk 0:01:20]} 16. g4 {[%clk 0:02:23]}  g6 {[%clk 0:01:10]} 17. Qxh6 {[%clk 0:02:11]}  Bg7 {[%clk 0:01:02]} 18. Qh3 {[%clk 0:02:11]}  b5 {[%clk 0:01:00]} 19. Nf3 {[%clk 0:02:03]}  b4 {[%clk 0:00:56]} 20. Ng5 {[%clk 0:01:54]}  Rfc8 {[%clk 0:00:50]} 21. Nf3 {[%clk 0:01:29]}  bxc3 {[%clk 0:00:14]} 22. bxc3 {[%clk 0:01:28]}  cxd4 {[%clk 0:00:15]} 23. cxd4 {[%clk 0:01:28]}  Rc3 {[%clk 0:00:14]} 24. Rfd1 {[%clk 0:01:27]}  a5 {[%clk 0:00:14]} 25. Rab1 {[%clk 0:01:25]}  Bc6 {[%clk 0:00:10]} 26. Qf1 {[%clk 0:01:17]}  Ba4 {[%clk 0:00:10]} 27. Rdc1 {[%clk 0:01:15]}  Qc7 {[%clk 0:00:10]} 28. Rxc3 {[%clk 0:01:13]}  Qxc3 {[%clk 0:00:10]} 29. Qe2 {[%clk 0:01:08]}  Qa3 {[%clk 0:00:10]} 30. Kg2 {[%clk 0:01:06]}  Rc3 {[%clk 0:00:10]} 31. Ne1 {[%clk 0:01:01]}  Rc8 {[%clk 0:00:07]} 32. Kf2 {[%clk 0:00:55]}  Qe7 {[%clk 0:00:06]} 33. Nf3 {[%clk 0:00:53]}  Qa3 {[%clk 0:00:06]} 34. Qb2 {[%clk 0:00:52]}  Qe7 {[%clk 0:00:04]} 35. Rc1 {[%clk 0:00:49]}  Qd7 {[%clk 0:00:04]} 36. Rxc8+ {[%clk 0:00:48]}  Qxc8 {[%clk 0:00:04]} 37. Qa3 {[%clk 0:00:49]}  Qc6 {[%clk 0:00:04]} 38. h3 {[%clk 0:00:45]}  Bf8 {[%clk 0:00:04]} 39. Qb2 {[%clk 0:00:44]}  Qc7 {[%clk 0:00:03]} 40. Ne5 {[%clk 0:00:43]}  Bd7 {[%clk 0:00:02]} 41. g5 {[%clk 0:00:41]}  Bc6 {[%clk 0:00:03]} 42. Qc2 {[%clk 0:00:40]}  Qb7 {[%clk 0:00:00]} 43. Nxc6 {[%clk 0:00:40]} 1-0


[Site "https://www.chess.com"]

[Event "Titled Tuesday Blitz October 31 Late 2023"]
[White "Fernandez Hernandez, Gerardo"]
[Black "Bibasa, Bob"]
[WhiteFideId "2207400"]
[BlackFideId "10000240"]
[WhiteElo "2148"]
[BlackElo "2423"]
[Result "0-1"]
[Round "6"]
[TimeControl "180+1"]
[Date "2023.10.31"]
[WhiteClock "0:01:31"]
[BlackClock "0:02:28"]
[Board "142"]

1. e4 {[%clk 0:03:00]}  c5 {[%clk 0:03:00]} 2. Nc3 {[%clk 0:02:59]}  Nc6 {[%clk 0:03:00]} 3. f4 {[%clk 0:03:00]}  g6 {[%clk 0:03:00]} 4. Nf3 {[%clk 0:03:00]}  Bg7 {[%clk 0:03:00]} 5. a3 {[%clk 0:03:01]}  e6 {[%clk 0:02:50]} 6. b4 {[%clk 0:03:00]}  d5 {[%clk 0:02:44]} 7. exd5 {[%clk 0:02:46]}  exd5 {[%clk 0:02:45]} 8. bxc5 {[%clk 0:02:40]}  d4 {[%clk 0:02:39]} 9. Nb5 {[%clk 0:02:23]}  Qe7+ {[%clk 0:02:31]} 10. Kf2 {[%clk 0:01:58]}  Qxc5 {[%clk 0:02:29]} 11. d3 {[%clk 0:01:31]}  Qxb5 {[%clk 0:02:28]} 0-1


[Site "https://www.chess.com"]